bitfinex/quotes_SOLUSD_20211001
["timestamp","ask_amount","ask_price","bid_price","bid_amount"]
[1633114649282,2.59,163.5,163.29,2.59]
[1633114649684,29.83011246,163.49,163.29,2.59]
[1633114650081,24.45291074,163.4,163.29,2.59]
[1633114650281,27.04291074,163.4,163.26,2.59]
[1633114651282,27.04291074,163.4,163.22,2.59]
[1633114651283,34.00963074,163.4,163.22,2.59]
[1633114651484,15.3119,163.35,163.22,2.59]
[1633114651683,2.59,163.35,163.22,2.59]
[1633114651882,2.59,163.39,163.22,2.59]
[1633114652484,6.96672,163.4,163.18,28.44743356]
[1633114652684,6.96672,163.4,163.19,80.9111]
[1633114652884,29.07394084,163.35,163.19,2.08]
[1633114654287,15.3152,163.3,163.19,2.08]
[1633114654487,28.09531276,163.29,163.19,2.08]
[1633114654687,28.09531276,163.29,163.17,98.80013986]
[1633114654688,33.2942,163.3,163.17,98.80013986]
[1633114659793,15.3152,163.3,163.17,98.80013986]
[1633114660596,17.3952,163.3,163.17,98.80013986]
[1633114661998,15.3152,163.3,163.18,2.08]
[1633114663700,6.96672,163.35,163.18,2.08]
[1633114664097,6.96672,163.35,163.19,6.21218434]
[1633114664299,6.96672,163.35,163.2,2.08]
[1633114665498,0.0412976,163.51,163.2,2.08]
[1633114665700,2.08,163.47,163.21,100.70581702]
[1633114665901,2.08,163.47,163.25,2.53865606]
[1633114666099,2.08,163.47,163.26,3.93418678]
[1633114666299,2.08,163.47,163.26,20.34873632]
[1633114666498,26.78439002,163.46,163.26,20.34873632]
[1633114666699,15.3043,163.42,163.27,6.02415861]
[1633114666901,15.3043,163.42,163.28,2.08]
[1633114667099,0.0412976,163.53,163.29,1.73634818]
[1633114667301,0.0412976,163.53,163.3,8.03382689]
[1633114667500,0.0412976,163.53,163.31,5.92961823]
[1633114667707,0.0412976,163.53,163.32,2.08]
[1633114667900,23.33212272,163.51,163.32,56.61206981]
[1633114668300,0.0412976,163.5,163.32,56.61206981]
[1633114668500,0.0412976,163.5,163.33,5.90091866]
[1633114668700,0.0412976,163.5,163.34,2.08]
[1633114668904,42.30462635,163.48,163.34,2.08]
[1633114669303,15.3094,163.48,163.34,2.08]
[1633114669901,15.3094,163.48,163.35,8.48863676]
[1633114670101,15.3094,163.48,163.36,2.08]
[1633114670304,27.94039624,163.47,163.36,2.08]
[1633114670501,27.98169384,163.47,163.36,2.08]
[1633114670706,0.0412976,163.45,163.36,2.08]
[1633114670902,0.0412976,163.45,163.33,344.10841148]
[1633114671702,0.0412976,163.45,163.31,2.08]
[1633114671907,0.0412976,163.45,163.33,2.57198203]
[1633114672102,15.3027,163.43,163.32,6.14253456]
[1633114672302,25.21670983,163.42,163.31,2.59910605]
[1633114672503,0.0412976,163.41,163.3,2.60953415]
[1633114672704,28.00248695,163.39,163.29,2.62699467]
[1633114672904,0.0412976,163.38,163.29,2.62699467]
[1633114673103,0.0412976,163.38,163.26,3.940492]
[1633114673104,0.0412976,163.38,163.3,2.62930101]
[1633114673305,106.0,163.37,163.26,3.940492]
[1633114673503,15.3152,163.31,163.26,3.940492]
[1633114673703,31.7662,163.31,163.26,3.940492]
[1633114673905,31.7662,163.31,163.23,3.98094754]
[1633114674102,31.7662,163.31,163.27,5.21365089]
[1633114674303,31.7662,163.31,163.23,3.98094754]
[1633114674503,0.0412976,163.3,163.23,3.98094754]
[1633114675106,0.0412976,163.3,163.26,4.03337903]
[1633114675905,0.0412976,163.3,163.26,1.01337903]
[1633114676106,31.8074976,163.31,163.26,1.01337903]
[1633114677104,58.91831268,163.31,163.26,1.01337903]
[1633114678405,58.87701508,163.31,163.26,1.01337903]
[1633114678605,31.7662,163.31,163.26,1.01337903]
[1633114679606,26.01602689,163.42,163.39,189.4007224]
[1633114679806,2.10088,163.41,163.39,189.4007224]
[1633114680207,2.10088,163.41,163.39,188.2907224]
[1633114680407,2.10088,163.41,163.39,154.2907224]
[1633114680609,2.10088,163.41,163.39,76.3686224]
[1633114680805,2.10088,163.41,163.39,62.3686224]
[1633114681405,2.10088,163.41,163.39,23.3686224]
[1633114681606,15.3097,163.37,163.22,2.08]
[1633114681806,22.33457259,163.36,163.22,2.08]
[1633114683610,22.33457259,163.36,163.23,0.0212976]
[1633114684409,34.4087,163.37,163.23,0.0212976]
[1633114684809,17.019,163.37,163.24,2.08]
[1633114685009,2.08,163.4,163.25,0.0212976]
[1633114685210,2.08,163.4,163.25,8.04314761]
[1633114685409,2.08,163.4,163.26,5.95647218]
[1633114685608,2.08,163.4,163.27,0.0212976]
[1633114686611,17.3855,163.4,163.28,0.0212976]
[1633114687012,6.96672,163.42,163.33,544.50632962]
[1633114687211,6.96672,163.42,163.34,5.81870507]
[1633114687814,6.96672,163.42,163.33,544.50632962]
[1633114688017,6.96672,163.42,163.34,5.82161589]
[1633114690015,6.96672,163.42,163.33,544.50632962]
[1633114691021,15.3051,163.41,163.26,2.08]
[1633114691416,15.3051,163.41,163.27,5.83693975]
[1633114692619,26.32648154,163.39,163.27,5.83693975]
[1633114692822,26.32648154,163.39,163.25,5.8205635]
[1633114693219,2.08,163.38,163.25,5.8205635]
[1633114693420,21.835,163.38,163.23,0.0212976]
[1633114694021,25.2530494,163.35,163.23,0.0212976]
[1633114694320,27.3330494,163.35,163.22,5.86100427]
[1633114694721,27.3330494,163.35,163.22,0.86100427]
[1633114695119,2.08,163.35,163.22,0.86100427]
[1633114695919,2.08,163.35,163.26,488.42099472]
[1633114696724,2.08,163.39,163.26,488.42099472]
[1633114697922,6.96672,163.42,163.26,488.42099472]
[1633114698122,6.96672,163.42,163.26,490.50099472]
[1633114698123,9.04672,163.42,163.26,490.50099472]
[1633114699325,9.04672,163.42,163.26,490.19852172]
[1633114699923,9.04672,163.42,163.36,457.12735993]
[1633114700723,28.64707188,163.41,163.36,457.12735993]
[1633114700926,48.56207188,163.41,163.36,457.12735993]
[1633114701124,19.915,163.41,163.26,2.08]
[1633114701530,19.915,163.41,163.26,2.1012976]
[1633114702126,43.50727527,163.41,163.26,2.1012976]
[1633114702529,17.3863,163.4,163.23,29.93843569]
[1633114703330,17.3863,163.4,163.23,2.08]
[1633114705430,17.3863,163.4,163.23,29.18458412]
[1633114707834,17.3863,163.4,163.23,29.20588172]
[1633114708834,17.3863,163.4,163.23,56.81262297]
[1633114709035,17.3863,163.4,163.29,342.03777437]
[1633114712335,15.3063,163.4,163.29,342.03777437]
[1633114712734,2.57,163.39,163.29,342.03777437]
[1633114713333,27.61937255,163.38,163.29,342.03777437]
[1633114713537,30.18937255,163.38,163.29,342.03777437]
[1633114714336,2.57,163.38,163.29,342.03777437]
[1633114718642,29.1961432,163.38,163.29,342.03777437]
[1633114723249,90.6761432,163.38,163.29,192.39777437]
[1633114723449,90.6761432,163.38,163.29,91.44697437]
[1633114723849,15.317,163.29,163.17,101.39143746]
[1633114724653,2.57,163.3,163.17,101.39143746]
[1633114724851,2.57,163.3,163.17,149.20967713]
[1633114725255,2.57,163.33,163.18,0.0212976]
[1633114725453,2.57,163.33,163.19,2.57]
[1633114725655,24.14785177,163.32,163.19,2.5912976]
[1633114725852,2.57,163.31,163.19,2.5912976]
[1633114726067,2.57,163.31,163.19,2.57]
[1633114726669,15.3154,163.3,163.17,95.37013986]
[1633114726869,26.48205712,163.28,163.17,95.37013986]
[1633114727073,29.05205712,163.28,163.17,95.37013986]
[1633114729770,21.67216291,163.24,163.17,95.37013986]
[1633114730769,21.67216291,163.24,163.22,511.28489033]
[1633114731369,21.67216291,163.24,163.22,465.31659033]
[1633114732171,2.57,163.23,163.17,95.37013986]
[1633114736874,25.509,163.23,163.17,95.37013986]
[1633114738873,42.26996942,163.2,163.17,95.37013986]
[1633114739474,44.83996942,163.2,163.17,95.37013986]
[1633114741976,17.8951,163.2,163.17,95.37013986]
[1633114744079,6.96672,163.19,163.06,0.0212976]
[1633114744279,6.96672,163.19,162.98,74.37]
[1633114744280,2.57,163.18,162.99,120.74905224]
[1633114744479,29.27128853,163.18,163.0,0.0212976]
[1633114744681,48.07691071,163.18,163.0,0.0212976]
[1633114745083,64.27,163.16,163.0,0.0212976]
[1633114745282,64.27,163.16,162.99,113.7152]
[1633114745283,31.30244703,163.15,162.99,113.7152]
[1633114745480,50.10806921,163.15,162.99,113.7152]
[1633114745683,15.3344,163.13,162.99,113.7152]
[1633114745881,30.5366876,163.12,162.98,74.37]
[1633114746680,30.5366876,163.12,162.96,0.0212976]
[1633114746881,30.5366876,163.12,162.93,0.0212976]
[1633114747682,30.5366876,163.12,162.93,2.57]
[1633114747882,30.5366876,163.12,162.94,0.0212976]
[1633114748486,59.51238223,163.12,162.93,0.0212976]
[1633114748686,64.27,163.11,162.92,0.0212976]
[1633114748884,27.27074971,163.09,162.92,0.0212976]
[1633114749084,2.57,163.08,162.91,78.4518]
[1633114749486,85.64562218,163.08,162.91,78.4518]
[1633114749687,64.27,163.06,162.91,78.4518]
[1633114749883,26.32275522,163.05,162.89,4.76247111]
[1633114750085,26.32275522,163.05,162.87,72.4131]
[1633114750685,15.3459,162.98,162.87,72.4131]
[1633114750886,0.0059,162.98,162.87,72.4131]
[1633114751086,64.27,163.14,163.07,47.12713177]
[1633114751285,64.27,163.21,163.07,47.12713177]
[1633114751485,2.57,163.2,163.08,76.3088]
[1633114751687,2.57,163.19,163.09,0.0212976]
[1633114752086,2.57,163.19,163.09,19.18392049]
[1633114752285,2.57,163.19,163.1,0.0212976]
[1633114752887,2.57,163.22,163.1,0.0212976]
[1633114753288,30.30335101,163.21,163.1,0.0212976]
[1633114753688,30.30335101,163.21,163.11,2.57]
[1633114753886,30.30335101,163.21,163.12,0.0212976]
[1633114754087,30.30335101,163.21,163.13,2.57]
[1633114754290,30.30335101,163.21,163.14,0.0212976]
[1633114754489,15.3229,163.23,163.13,2.57]
[1633114756193,2.57,163.28,163.13,2.57]
[1633114756791,2.57,163.28,163.14,0.0212976]
[1633114756997,22.34111971,163.27,163.15,2.57]
[1633114757193,22.34111971,163.27,163.16,19.16262289]
[1633114757593,2.57,163.28,163.15,2.5912976]
[1633114757994,2.57,163.33,163.16,0.0212976]
[1633114758194,2.57,163.33,163.17,2.57]
[1633114758395,2.57,163.33,163.18,0.0212976]
[1633114758599,27.34648433,163.32,163.19,2.57]
[1633114758797,27.34648433,163.32,163.2,2.57577251]
[1633114758994,27.34648433,163.32,163.2,5.14577251]
[1633114759695,15.3153,163.31,163.2,5.14577251]
[1633114760294,15.3153,163.31,163.2,2.57]
[1633114760695,17.8853,163.31,163.18,0.0212976]
[1633114761297,17.8853,163.31,163.18,23.21237749]
[1633114762895,17.8853,163.31,163.2,0.0212976]
[1633114764498,42.15930385,163.31,163.2,0.0212976]
[1633114764702,17.8853,163.31,163.2,0.0212976]
[1633114765700,28.17656792,163.3,163.2,0.0212976]
[1633114766099,28.17656792,163.3,163.19,2.57]
[1633114766100,30.74656792,163.3,163.18,23.21237749]
[1633114766302,2.57,163.3,163.18,23.21237749]
[1633114766503,2.57,163.3,163.19,0.0212976]
[1633114766702,2.57,163.3,163.18,23.19107989]
[1633114767301,27.97264299,163.3,163.18,23.19107989]
[1633114768403,2.57,163.3,163.18,23.19107989]
[1633114769605,28.46333784,163.3,163.18,23.19107989]
[1633114773207,2.57,163.3,163.18,23.19107989]
[1633114774212,31.27126234,163.3,163.18,23.19107989]
[1633114774810,2.57,163.3,163.18,23.19107989]
[1633114775209,2.57,163.3,163.18,21.19507989]
[1633114775409,2.57,163.3,163.19,2.57]
[1633114775607,2.57,163.3,163.19,2.5912976]
[1633114776208,2.57,163.34,163.19,2.5912976]
[1633114776408,6.96672,163.4,163.19,122.45478738]
[1633114776609,6.96672,163.4,163.21,64.27]
[1633114776812,6.96672,163.4,163.22,5.98454964]
[1633114777008,6.96672,163.4,163.24,64.27]
[1633114777207,15.314,163.44,163.25,80.3483976]
[1633114777408,15.314,163.44,163.26,0.0212976]
[1633114777608,2.57,163.48,163.28,3.31826328]
[1633114777808,2.57,163.48,163.29,2.5912976]
[1633114778009,2.57,163.48,163.3,0.0212976]
[1633114778209,2.57,163.53,163.31,4.3662288]
[1633114778410,2.57,163.53,163.33,1.60849914]
[1633114778612,2.57,163.53,163.34,2.5912976]
[1633114778810,2.57,163.53,163.34,23.00047542]
[1633114779009,2.57,163.53,163.34,26.8392831]
[1633114779209,2.57,163.53,163.35,20.40917782]
[1633114779414,21.95757997,163.55,163.36,2.57]
[1633114779613,0.02088,163.61,163.37,0.0212976]
[1633114779812,2.57,163.6,163.38,66.84]
[1633114780012,2.57,163.6,163.39,0.0212976]
[1633114780211,2.57,163.6,163.4,2.57]
[1633114780412,9.53672,163.6,163.4,2.57]
[1633114780611,26.11288011,163.59,163.4,2.57]
[1633114780811,2.59088,163.58,163.4,2.57]
[1633114781012,22.15610271,163.5,163.4,2.57]
[1633114782614,27.06232349,163.45,163.4,2.57]
[1633114782815,27.06232349,163.45,163.36,2.57]
[1633114783216,27.06232349,163.45,163.33,2.57]
[1633114784014,28.57555787,163.4,163.33,2.57]
[1633114784414,28.57555787,163.4,163.28,2.57]
[1633114785414,31.14555787,163.4,163.33,528.4752592]
[1633114785614,29.07356924,163.35,163.26,2.57]
[1633114787416,15.3104,163.36,163.26,2.57]
[1633114788820,27.37861897,163.35,163.26,2.57]
[1633114789217,15.3104,163.36,163.26,2.57]
[1633114789819,15.3104,163.36,163.27,7.10207499]
[1633114790219,15.3104,163.36,163.25,10.64567431]
[1633114790620,15.3104,163.36,163.26,3.54343144]
[1633114790819,25.60929427,163.4,163.27,2.57]
[1633114790820,2.57,163.4,163.27,2.57]
[1633114791019,2.57,163.4,163.27,6.10725743]
[1633114791221,15.305,163.42,163.28,3.50906548]
[1633114791420,2.57,163.45,163.3,3.49665575]
[1633114791621,2.57,163.45,163.31,6.04564912]
[1633114791820,29.4916781,163.44,163.32,10.57481457]
[1633114792022,29.4916781,163.44,163.32,9.66948948]
[1633114792220,29.4916781,163.44,163.32,2.57]
[1633114792620,29.4916781,163.44,163.33,446.80666203]
[1633114792821,2.57,163.45,163.33,446.80666203]
[1633114794020,15.3003,163.47,163.34,2.57]
[1633114794221,28.01373975,163.46,163.34,2.57]
[1633114794823,15.3044,163.43,163.34,2.57]
[1633114795024,21.79296979,163.42,163.34,2.57]
[1633114795621,21.79296979,163.42,163.33,446.80666203]
[1633114796023,15.3082,163.38,163.33,446.80666203]
[1633114796222,43.07939168,163.38,163.33,446.80666203]
[1633114796825,45.64939168,163.38,163.33,446.80666203]
[1633114797025,45.64939168,163.38,163.33,400.86816203]
[1633114797826,45.64939168,163.38,163.24,3.48952922]
[1633114798826,45.64939168,163.38,163.26,546.75564886]
[1633114800531,32.57193828,163.38,163.26,560.65249526]
[1633114800935,17.8782,163.38,163.26,560.65249526]
[1633114801332,17.8782,163.38,163.27,7.10317661]
[1633114801534,3.06091216,163.35,163.27,7.10317661]
[1633114801733,3.06091216,163.35,163.27,10.60867119]
[1633114801937,3.06091216,163.35,163.29,21.19507989]
[1633114802334,3.06091216,163.35,163.3,7.10188227]
[1633114802535,3.06091216,163.35,163.28,3.49631897]
[1633114802736,3.06091216,163.35,163.27,10.61236791]
[1633114803736,2.57,163.42,163.29,106.0]
[1633114803935,0.02088,163.46,163.31,3.47879321]
[1633114804134,2.57,163.51,163.4,3.42564863]
[1633114804337,2.57,163.53,163.43,3.39836746]
[1633114804736,2.57,163.53,163.44,12.00015307]
[1633114804935,2.57,163.56,163.45,10.50065493]
[1633114805134,2.57,163.56,163.47,3.38534851]
[1633114805336,2.57,163.56,163.46,3.38236311]
[1633114805934,2.57,163.56,163.47,23.20809547]
[1633114806135,2.57,163.56,163.48,7.09555761]
[1633114806336,2.57,163.56,163.46,3.39686893]
[1633114807136,2.57,163.56,163.45,7.09567528]
[1633114807338,37.20908562,163.55,163.42,3.45247663]
[1633114807537,2.57,163.54,163.41,3.46049381]
[1633114807738,6.9202,163.53,163.41,3.46049381]
[1633114807940,2.57,163.52,163.4,3.46694893]
[1633114808137,9.4902,163.52,163.39,3.4833337]
[1633114808335,24.58631242,163.51,163.39,3.4833337]
[1633114808536,2.57,163.5,163.39,3.4833337]
[1633114808735,2.57,163.5,163.38,10.59564304]
[1633114809136,2.57,163.5,163.44,0.17133559]
[1633114809337,2.57,163.5,163.44,0.34267118]
[1633114812341,24.58631242,163.51,163.44,0.34267118]
[1633114812539,26.66631242,163.51,163.44,0.34267118]
[1633114813142,26.66631242,163.51,163.44,0.00267118]
[1633114813339,95.06651242,163.51,163.44,0.00267118]
[1633114813541,109.99739516,163.51,163.44,0.00267118]
[1633114813742,24.89203352,163.5,163.44,0.00267118]
[1633114813944,9.0002,163.49,163.44,0.00267118]
[1633114814341,9.0002,163.49,163.35,3.44534844]
[1633114814540,25.1202,163.49,163.35,3.44534844]
[1633114814739,15.303,163.45,163.35,3.44534844]
[1633114814941,2.08,163.44,163.35,3.44534844]
[1633114815140,26.39952619,163.43,163.35,3.44534844]
[1633114815339,28.47952619,163.43,163.34,3.46871965]
[1633114815540,28.47952619,163.43,163.35,3.46983188]
[1633114816146,28.47952619,163.43,163.34,3.47040686]
[1633114816339,28.47952619,163.43,163.35,3.46870283]
[1633114816539,28.47952619,163.43,163.34,3.4919174]
[1633114816741,15.3074,163.4,163.35,3.50871405]
[1633114816945,26.95515834,163.39,163.35,3.50871405]
[1633114817143,26.95515834,163.39,163.34,3.52842508]
[1633114817544,26.95515834,163.39,163.33,3.53981556]
[1633114817942,10.08,163.38,163.3,5.31781707]
[1633114818343,34.97203352,163.38,163.28,7.1005811]
[1633114818547,26.97203352,163.38,163.28,7.1005811]
[1633114818742,26.97203352,163.38,163.25,5.31983261]
[1633114818942,26.97203352,163.38,163.27,0.0212976]
[1633114819142,15.3146,163.34,163.27,0.0212976]
[1633114819542,15.3146,163.34,163.28,23.62141376]
[1633114819741,15.3146,163.34,163.29,7.12368435]
[1633114819942,15.3146,163.34,163.3,0.0212976]
[1633114820543,15.3192,163.34,163.28,0.0212976]
[1633114820744,17.3874,163.4,163.28,0.0212976]
[1633114820745,15.3074,163.4,163.28,0.0212976]
[1633114820948,15.3074,163.4,163.29,2.08]
[1633114821145,6.9202,163.45,163.3,0.0212976]
[1633114821345,6.9202,163.45,163.3,9.20065431]
[1633114821545,27.64793858,163.44,163.31,30.21412364]
[1633114821746,27.64793858,163.44,163.32,21.22948657]
[1633114821947,27.64793858,163.44,163.34,4.89910025]
[1633114822148,27.64793858,163.44,163.35,7.12061709]
[1633114824547,27.64793858,163.44,163.35,0.0212976]
[1633114825951,27.64793858,163.44,163.34,6.120867]
[1633114827949,27.64793858,163.44,163.34,20.10693736]
[1633114828351,6.9202,163.45,163.34,25.31795551]
[1633114829550,6.9202,163.45,163.36,10.20495276]
[1633114831553,6.9202,163.45,163.37,5.19144719]
[1633114834957,6.9202,163.45,163.36,29.37799466]
[1633114835657,22.2223,163.45,163.36,29.37799466]
[1633114836056,22.2223,163.45,163.37,5.19162533]
[1633114837155,22.2223,163.45,163.38,5.19524781]
[1633114837957,22.2223,163.45,163.39,24.88697353]
[1633114838356,6.9202,163.45,163.39,24.88697353]
[1633114838555,5.4202,163.45,163.4,13.83025687]
[1633114838756,15.2966,163.51,163.4,13.83025687]
[1633114839358,15.2966,163.51,163.42,10.20495276]
[1633114841960,15.2966,163.51,163.41,5.13599747]
[1633114842360,15.2966,163.51,163.39,20.93066745]
[1633114842559,15.2966,163.51,163.39,18.85066745]
[1633114842760,15.2966,163.51,163.39,5.13048184]
[1633114842958,15.2966,163.51,163.42,366.056112]
[1633114843959,15.2966,163.51,163.42,379.37507196]
[1633114844159,15.2966,163.51,163.42,13.31895996]
[1633114847160,15.2966,163.51,163.4,15.53337561]
[1633114848862,15.2966,163.51,163.39,5.03554446]
[1633114849061,15.2966,163.51,163.4,5.01608719]
[1633114849862,22.75770234,163.5,163.4,5.01608719]
[1633114850061,15.301,163.46,163.39,5.02374491]
[1633114852269,15.301,163.46,163.4,5.00001688]
[1633114852465,2.08,163.54,163.41,18.19254063]
[1633114852665,2.08,163.54,163.41,18.17166063]
[1633114852864,25.74742225,163.53,163.41,18.17166063]
[1633114853267,25.74742225,163.53,163.44,4.90967565]
[1633114853466,2.08,163.54,163.44,8.51098135]
[1633114853865,23.0,163.53,163.38,48.63243992]
[1633114854065,2.08,163.54,163.38,48.63243992]
[1633114854267,2.08,163.54,163.38,68.39243992]
[1633114854466,2.08,163.57,163.39,14.39332874]
[1633114854667,2.08,163.57,163.4,2.08]
[1633114858373,15.295,163.52,163.39,14.39332874]
[1633114858574,21.63999895,163.51,163.39,14.39332874]
[1633114859672,21.63999895,163.51,163.38,46.55243992]
[1633114860677,15.2999,163.47,163.38,61.57438717]
[1633114860872,15.2999,163.47,163.38,15.02194725]
[1633114861276,15.2999,163.47,163.37,488.03617505]
[1633114862678,15.2999,163.47,163.38,2.66228904]
[1633114863476,15.2999,163.47,163.37,488.03617505]
[1633114864492,26.33333403,163.46,163.37,488.03617505]
[1633114867797,15.2999,163.47,163.37,488.03617505]
[1633114867995,0.0212976,163.48,163.37,506.20117505]
[1633114868197,2.1012976,163.51,163.37,506.20117505]
[1633114868397,0.0212976,163.51,163.38,2.08]
[1633114868598,0.0212976,163.52,163.38,2.08]
[1633114868796,21.62547576,163.52,163.39,13.03806254]
[1633114868998,21.60417816,163.52,163.39,13.03806254]
[1633114869197,15.295,163.53,163.39,13.03806254]
[1633114870198,45.13989652,163.53,163.39,13.03806254]
[1633114870998,15.295,163.53,163.39,13.03806254]
[1633114871402,15.295,163.53,163.4,2.08]
[1633114871799,15.295,163.53,163.4,17.018]
[1633114872402,15.295,163.53,163.4,14.938]
[1633114872599,76.5660976,163.62,163.4,14.938]
[1633114872800,2.57,163.61,163.41,2.57]
[1633114873399,2.57,163.61,163.42,5.13359809]
[1633114873599,2.57,163.61,163.43,2.57]
[1633114874200,2.57,163.61,163.46,384.71487524]
[1633114874401,2.57,163.61,163.48,13.03806254]
[1633114874601,2.57,163.61,163.48,15.60806254]
[1633114877906,27.12410574,163.61,163.45,2.57]
[1633114878305,0.0212976,163.6,163.45,2.57]
[1633114878504,2.57,163.59,163.45,2.57]
[1633114878707,0.0212976,163.58,163.45,2.57]
[1633114878906,28.536113,163.58,163.45,2.57]
[1633114879305,2.57,163.57,163.45,2.57]
[1633114879507,0.0212976,163.56,163.45,2.57]
[1633114879705,2.5912976,163.56,163.45,2.57]
[1633114879904,0.0212976,163.55,163.45,2.57]
[1633114880306,30.28521554,163.55,163.45,2.57]
[1633114880504,0.0212976,163.54,163.45,2.57]
[1633114883309,2.5912976,163.54,163.42,78.0695]
[1633114883907,2.5912976,163.54,163.39,2.57]
[1633114884108,0.0212976,163.53,163.39,2.57]
[1633114884309,2.57,163.52,163.36,2.57]
[1633114884509,0.0212976,163.51,163.36,2.57]
[1633114884708,2.57,163.5,163.36,2.57]
[1633114884910,0.0212976,163.49,163.36,2.57]
[1633114885108,2.57,163.48,163.36,2.57]
[1633114885308,2.5912976,163.48,163.36,2.57]
[1633114885506,17.8903976,163.48,163.37,13.69156583]
[1633114885707,2.5912976,163.48,163.37,16.26156583]
[1633114886110,2.57,163.48,163.37,16.26156583]
[1633114886308,0.0212976,163.51,163.37,16.26156583]
[1633114886507,2.57,163.52,163.37,575.13167284]
[1633114886911,15.2985,163.49,163.37,558.38467284]
[1633114887107,15.2985,163.49,163.37,544.69310701]
[1633114887307,2.57,163.48,163.37,544.69310701]
[1633114888106,23.32537256,163.47,163.37,544.69310701]
[1633114889709,2.57,163.48,163.37,558.31486877]
[1633114890808,23.2847728,163.47,163.37,558.31486877]
[1633114893617,15.2985,163.49,163.37,558.31486877]
[1633114894016,15.2985,163.49,163.37,544.69310701]
[1633114894616,17.8685,163.49,163.37,544.69310701]
[1633114894813,17.8685,163.49,163.37,2.57]
[1633114895015,17.8685,163.49,163.38,17.92079831]
[1633114896918,17.8685,163.49,163.37,2.57]
[1633114900519,40.7715,163.49,163.37,2.57]
[1633114903423,40.7715,163.49,163.34,80.7943]
[1633114905727,66.34105019,163.49,163.34,80.7943]
[1633114907328,66.34105019,163.49,163.35,13.53136541]
[1633114908130,0.0212976,163.48,163.35,13.53136541]
[1633114908331,23.0,163.46,163.34,13.69366788]
[1633114908535,2.5912976,163.45,163.34,13.69366788]
[1633114908731,2.5912976,163.44,163.34,13.69366788]
[1633114908931,2.57,163.43,163.31,13.72317271]
[1633114909134,24.04659939,163.42,163.32,4.93039958]
[1633114909730,15.3088,163.4,163.32,4.93039958]
[1633114910430,15.3088,163.4,163.31,13.72317271]
[1633114911432,15.3088,163.4,163.32,16.0500774]
[1633114912233,15.3088,163.4,163.31,13.72317271]
[1633114912632,15.3088,163.4,163.29,2.57]
[1633114913434,22.59873865,163.39,163.29,17.94943933]
[1633114913934,22.59873865,163.39,163.33,5.32039579]
[1633114914836,15.3088,163.4,163.33,5.32039579]
[1633114916137,15.3088,163.4,163.34,5.27203985]
[1633114917236,15.3088,163.4,163.33,5.24359174]
[1633114922641,15.3088,163.4,163.34,5.26643346]
[1633114924847,15.3088,163.4,163.3,7.09972291]
[1633114925050,30.7628,163.4,163.3,7.09972291]
[1633114925245,2.57,163.28,163.27,368.7348617]
[1633114925446,20.954,163.28,163.27,77.59287541]
[1633114925649,20.954,163.28,163.19,2.57]
[1633114925848,36.2719,163.28,163.2,7.10442093]
[1633114926249,36.2719,163.28,163.21,28.58028228]
[1633114926447,36.2719,163.28,163.22,7.103862]
[1633114926648,20.954,163.28,163.22,18.90246952]
[1633114926849,16.2472852,163.33,163.22,18.90246952]
[1633114927048,2.57,163.36,163.22,18.90246952]
[1633114927651,15.3123,163.34,163.22,18.90246952]
[1633114929154,15.3123,163.34,163.22,93.55716952]
[1633114929555,2.57,163.35,163.24,22.30101343]
[1633114929755,2.57,163.39,163.26,527.17008767]
[1633114929955,2.57,163.39,163.28,24.44835762]
[1633114930158,21.27502287,163.83,163.29,2.57]
[1633114930159,2.57,163.45,163.29,2.57]
[1633114930356,2.57,163.45,163.3,7.09838497]
[1633114930556,2.57,163.45,163.32,25.26845685]
[1633114930759,2.57,163.45,163.33,18.83594971]
[1633114931556,2.57,163.45,163.37,556.46663418]
[1633114931757,2.57,163.45,163.38,7.09831847]
[1633114931958,2.57,163.45,163.37,7.09889651]
[1633114933761,15.3051,163.41,163.31,78.5257]
[1633114933964,15.3051,163.41,163.32,7.09925528]
[1633114934761,15.3051,163.41,163.33,29.67062049]
[1633114935161,15.3051,163.41,163.34,7.09927008]